fUSD/lending_fUSD_20251206
["ID","MTS","AMOUNT","RATE_DAILY","PERIOD"]
[396574796,1765056638715,-200.0,0.00015962,2]
[396574797,1765056638724,-500.0,0.00015962,2]
[396574798,1765056638733,-207.4,0.00015962,2]
[396574799,1765056638744,-452.39878914,0.00015962,2]
[396574800,1765056638754,-215.0738,0.00015962,2]
[396574801,1765056638764,-223.0315306,0.00015962,2]
[396574802,1765056638773,-231.28369723,0.00015962,2]
[396574803,1765056638783,-239.84119403,0.00015962,2]
[396574804,1765056638792,-248.71531821,0.00015962,2]
[396574805,1765056638801,-257.91778498,0.00015962,2]
[396574806,1765056638810,-267.46074303,0.00015962,2]
[396574807,1765056638820,-300.0,0.00015962,2]
[396574808,1765056638830,-216.12575462,0.00015962,2]
[396574809,1765056638839,-1258.0,0.00015997,2]
[396574810,1765056638848,-11085.09002893,0.00016044,2]
[396574811,1765056638858,-1056.0,0.00016073,2]
[396574812,1765056638867,-676.0,0.00016105,2]
[396574813,1765056638876,-150.0,0.00016111,2]
[396574814,1765056638885,-150.0,0.00016111,2]
[396574815,1765056638895,-665.0,0.00016121,2]
[396574816,1765056638905,-1097.0,0.00016153,2]
[396574817,1765056638915,-544.91177155,0.00016157,2]
[396574818,1765056638926,-2000.0,0.000162,5]
[396574819,1765056638936,-11085.09002893,0.00016258,2]
[396574820,1765056638946,-810.65101971,0.00016305,2]
[396574821,1765056638955,-500.0,0.00016337,2]
[396574822,1765056638964,-389.64233218,0.00016337,2]
[396574823,1765056638973,-500.0,0.00016337,2]
[396574824,1765056638983,-500.0,0.00016337,2]
[396574825,1765056638992,-500.0,0.00016337,2]
[396574826,1765056639002,-500.0,0.00016337,2]
[396574827,1765056639012,-500.0,0.00016337,2]
[396574828,1765056639021,-853.09882414,0.00016338,2]
[396574829,1765056639030,-157.43693317,0.00016338,2]
[396574830,1765056639040,-233.62617741,0.00016338,2]
[396574831,1765056639051,-10000.0,0.00016338,2]
[396574832,1765056639060,-270.0,0.00016361,2]
[396574833,1765056639070,-270.0,0.00016379,2]
[396574834,1765056639080,-1000.0,0.00016398,3]
[396574835,1765056639090,-420.0,0.00016415,2]
[396574836,1765056639100,-278.0,0.00016415,2]
[396574837,1765056639109,-151.0,0.00016435,2]
[396574838,1765056639119,-151.0,0.00016435,2]
[396574839,1765056639128,-500.0,0.00016437,2]
[396574840,1765056639138,-500.0,0.00016437,2]
[396574841,1765056639148,-239.10838329,0.00016437,2]
[396574842,1765056639158,-501.65086922,0.00016438,2]
[396574843,1765056639168,-501.79460066,0.00016438,2]
[396574844,1765056639177,-500.0,0.00016438,2]
[396574845,1765056639187,-502.41543289,0.00016438,2]
[396574846,1765056639196,-501.03550429,0.00016438,2]
[396574847,1765056639205,-501.43523502,0.00016438,2]
[396574848,1765056639214,-500.0,0.00016438,2]
[396574849,1765056639223,-501.77348217,0.00016438,2]
[396574850,1765056639232,-501.83538398,0.00016438,2]
[396574851,1765056639242,-500.0,0.00016438,2]
[396574852,1765056639250,-627.46,0.00016438,2]
[396574853,1765056639260,-500.0,0.00016438,2]
[396574854,1765056639270,-500.0,0.00016438,2]
[396574855,1765056639279,-500.0,0.00016438,2]
[396574856,1765056639289,-500.0,0.00016438,2]
[396574857,1765056639298,-500.0,0.00016438,2]
[396574858,1765056639308,-500.0,0.00016438,2]
[396574859,1765056639317,-500.0,0.00016438,2]
[396574860,1765056639327,-2047.37,0.00016438,2]
[396574861,1765056639337,-500.0,0.00016438,2]
[396574862,1765056639347,-500.0,0.00016438,2]
[396574863,1765056639357,-500.0,0.00016438,2]
[396574864,1765056639367,-500.0,0.00016438,2]
[396574865,1765056639377,-630.41013807,0.00016438,2]
[396574866,1765056639386,-500.0,0.00016438,2]
[396574867,1765056639395,-500.0,0.00016438,2]
[396574868,1765056639404,-500.0,0.00016438,2]
[396574869,1765056639414,-500.0,0.00016438,2]
[396574870,1765056639423,-500.0,0.00016438,2]
[396574871,1765056639432,-500.0,0.00016438,2]
[396574872,1765056639442,-500.0,0.00016438,2]
[396574873,1765056639452,-500.0,0.00016438,2]
[396574874,1765056639461,-500.0,0.00016438,2]
[396574875,1765056639471,-500.0,0.00016438,2]
[396574876,1765056639481,-500.0,0.00016438,2]
[396574877,1765056639490,-500.0,0.00016438,2]
[396574878,1765056639500,-500.0,0.00016438,2]
[396574879,1765056639509,-500.0,0.00016438,2]
[396574880,1765056639518,-500.0,0.00016438,2]
[396574881,1765056639528,-500.0,0.00016438,2]
[396574882,1765056639539,-500.0,0.00016438,2]
[396574883,1765056639548,-500.0,0.00016438,2]
[396574884,1765056639557,-500.0,0.00016438,2]
[396574885,1765056639567,-500.0,0.00016438,2]
[396574886,1765056639576,-502.9556045,0.00016438,2]
[396574887,1765056639585,-501.54488646,0.00016438,2]
[396574888,1765056639596,-295.38070416,0.00016438,2]
[396574889,1765056639606,-500.0,0.00016438,2]
[396574890,1765056639615,-500.0,0.00016438,2]
[396574891,1765056639624,-500.0,0.00016438,2]
[396574892,1765056639637,-502.48459344,0.00016438,2]
[396574893,1765056639649,-500.0,0.00016438,2]
[396574896,1765056639664,-500.0,0.00016438,2]
[396574897,1765056639677,-500.0,0.00016438,2]
[396574898,1765056639687,-500.0,0.00016438,2]
[396574899,1765056639699,-2466.51,0.00016438,2]
[396574900,1765056639711,-500.0,0.00016438,2]
[396574901,1765056639724,-500.0,0.00016438,2]
[396574902,1765056639736,-502.87984273,0.00016438,2]
[396574903,1765056639752,-500.0,0.00016438,2]
[396574904,1765056639764,-500.0,0.00016438,2]
[396574905,1765056639776,-500.0,0.00016438,2]
[396574906,1765056639787,-500.0,0.00016438,2]
[396574907,1765056639799,-501.97212613,0.00016438,2]
[396574908,1765056639810,-500.0,0.00016438,2]
[396574909,1765056639824,-500.0,0.00016438,2]
[396574910,1765056639836,-1591.33,0.00016438,2]
[396574911,1765056639848,-500.0,0.00016438,2]
[396574912,1765056639861,-500.0,0.00016438,2]
[396574913,1765056639874,-503.20325223,0.00016438,2]
[396574914,1765056639886,-503.00837935,0.00016438,2]
[396574915,1765056639899,-503.3343658,0.00016438,2]
[396574916,1765056639910,-2011.95,0.00016438,2]
[396574917,1765056639922,-500.0,0.00016438,2]
[396574918,1765056639936,-502.60918029,0.00016438,2]
[396574919,1765056639948,-303.66473949,0.00016438,2]
[396574920,1765056639960,-500.0,0.00016438,2]
[396574921,1765056639972,-500.0,0.00016438,2]
[396574922,1765056639984,-503.25961142,0.00016438,2]
[396574923,1765056639996,-244.73171036,0.00016438,2]
[396574924,1765056640008,-2194.33,0.00016438,2]
[396574925,1765056640021,-500.0,0.00016438,2]
[396574926,1765056640032,-500.0,0.00016438,2]
[396574927,1765056640044,-500.0,0.00016438,2]
[396574928,1765056640055,-500.0,0.00016438,2]
[396574929,1765056640067,-500.0,0.00016438,2]
[396574930,1765056640077,-500.0,0.00016438,2]
[396574931,1765056640091,-503.44743897,0.00016438,2]
[396574932,1765056640106,-500.0,0.00016438,2]
[396574933,1765056640121,-500.0,0.00016438,2]
[396574934,1765056640131,-500.0,0.00016438,2]
[396574935,1765056640141,-498.0211094,0.00016438,2]
[396574936,1765056640151,-239.80322716,0.00016438,2]
[396574937,1765056640161,-500.0,0.00016438,2]
[396574938,1765056640173,-500.0,0.00016438,2]
[396574939,1765056640187,-500.0,0.00016438,2]
[396574940,1765056640199,-500.0,0.00016438,2]
[396574941,1765056640210,-500.0,0.00016438,2]
[396574942,1765056640221,-500.0,0.00016438,2]
[396574943,1765056640231,-500.0,0.00016438,2]
[396574944,1765056640242,-481.50056983,0.00016438,2]
[396574945,1765056640253,-500.0,0.00016438,2]
[396574946,1765056640264,-500.0,0.00016438,2]
[396574947,1765056640275,-500.0,0.00016438,2]
[396574948,1765056640286,-500.0,0.00016438,2]
[396574949,1765056640297,-2318.55,0.00016438,2]
[396574950,1765056640308,-500.0,0.00016438,2]
[396574951,1765056640319,-502.23350527,0.00016438,2]
[396574952,1765056640335,-500.0,0.00016438,2]
[396574953,1765056640347,-502.60348738,0.00016438,2]
[396574954,1765056640358,-500.0,0.00016438,2]
[396574955,1765056640369,-537.4,0.00016438,2]
[396574956,1765056640380,-626.13516018,0.00016438,2]
[396574957,1765056640391,-500.0,0.00016438,2]
[396574958,1765056640403,-500.0,0.00016438,2]
[396574959,1765056640414,-500.0,0.00016438,2]
[396574960,1765056640425,-500.0,0.00016438,2]
[396574961,1765056640436,-500.0,0.00016438,2]
[396574962,1765056640448,-500.0,0.00016438,2]
[396574963,1765056640459,-812.78,0.00016438,2]
[396574964,1765056640470,-576.88917731,0.00016438,2]
[396574965,1765056640481,-562.87427087,0.00016438,2]
[396574966,1765056640492,-500.0,0.00016438,2]
[396574967,1765056640503,-500.0,0.00016438,2]
[396574968,1765056640514,-500.0,0.00016438,2]
[396574969,1765056640525,-500.0,0.00016438,2]
[396574970,1765056640537,-500.0,0.00016438,2]
[396574971,1765056640548,-500.0,0.00016438,2]
[396574972,1765056640559,-500.0,0.00016438,2]
[396574973,1765056640570,-500.0,0.00016438,2]
[396574974,1765056640582,-541.66132068,0.00016438,2]
[396574975,1765056640593,-501.27967238,0.00016438,2]
[396574976,1765056640605,-500.0,0.00016438,2]
[396574977,1765056640616,-2052.77,0.00016438,2]
[396574978,1765056640628,-500.0,0.00016438,2]
[396574979,1765056640639,-502.38929405,0.00016438,2]
[396574980,1765056640650,-500.0,0.00016438,2]
[396574981,1765056640662,-500.0,0.00016438,2]
[396574982,1765056640673,-500.0,0.00016438,2]
[396574983,1765056640684,-500.0,0.00016438,2]
[396574984,1765056640696,-500.0,0.00016438,2]
[396574985,1765056640707,-500.0,0.00016438,2]
[396574986,1765056640719,-500.0,0.00016438,2]
[396574987,1765056640730,-500.0,0.00016438,2]
[396574988,1765056640742,-500.0,0.00016438,2]
[396574989,1765056640755,-500.0,0.00016438,2]
[396574990,1765056640766,-500.0,0.00016438,2]
[396574991,1765056640777,-500.0,0.00016438,2]
[396574992,1765056640789,-500.0,0.00016438,2]
[396574994,1765056640800,-503.08151598,0.00016438,2]
[396574996,1765056640812,-500.0,0.00016438,2]
[396574998,1765056640825,-500.0,0.00016438,2]
[396574999,1765056640836,-500.0,0.00016438,2]
[396575000,1765056640847,-500.0,0.00016438,2]
[396575001,1765056640858,-300.0,0.00016438,2]
[396575002,1765056640869,-500.0,0.00016438,2]
[396575003,1765056640880,-500.0,0.00016438,2]
[396575004,1765056640891,-501.96425277,0.00016438,2]
[396575005,1765056640902,-500.0,0.00016438,2]
[396575006,1765056640914,-507.63914207,0.00016438,2]
[396575007,1765056640925,-500.0,0.00016438,2]
[396575008,1765056640936,-500.0,0.00016438,2]
[396575009,1765056640947,-500.0,0.00016438,2]
[396575010,1765056640958,-500.0,0.00016438,2]
[396575011,1765056640970,-500.0,0.00016438,2]
[396575012,1765056640982,-500.0,0.00016438,2]
[396575013,1765056640992,-500.0,0.00016438,2]
[396575014,1765056641004,-500.0,0.00016438,2]
[396575015,1765056641014,-500.0,0.00016438,2]
[396575016,1765056641025,-500.0,0.00016438,2]
[396575017,1765056641036,-502.25023196,0.00016438,2]
[396575018,1765056641047,-465.79927056,0.00016438,2]
[396575019,1765056641058,-500.0,0.00016438,2]
[396575020,1765056641069,-2172.1,0.00016438,2]
[396575021,1765056641081,-500.64940814,0.00016438,2]
[396575022,1765056641091,-500.0,0.00016438,2]
[396575023,1765056641103,-500.0,0.00016438,2]
[396575024,1765056641115,-2476.18,0.00016438,2]
[396575025,1765056641126,-500.0,0.00016438,2]
[396575026,1765056641137,-547.2,0.00016438,2]
[396575027,1765056641149,-500.0,0.00016438,2]
[396575028,1765056641160,-1550.23,0.00016438,2]
[396575029,1765056641171,-502.28475495,0.00016438,2]
[396575030,1765056641182,-496.68323276,0.00016438,2]
[396575031,1765056641193,-2483.1,0.00016438,2]
[396575032,1765056641203,-500.0,0.00016438,2]
[396575033,1765056641214,-500.0,0.00016438,2]
[396575034,1765056641225,-515.83,0.00016438,2]
[396575035,1765056641237,-500.0,0.00016438,2]
[396575036,1765056641249,-500.0,0.00016438,2]
[396575037,1765056641266,-500.0,0.00016438,2]
[396575038,1765056641277,-500.0,0.00016438,2]
[396575039,1765056641288,-500.0,0.00016438,2]
[396575040,1765056641300,-500.0,0.00016438,2]
[396575041,1765056641310,-808.44,0.00016438,2]
[396575042,1765056641321,-502.15633118,0.00016438,2]
[396575043,1765056641332,-500.82063503,0.00016438,2]
[396575044,1765056641343,-500.0,0.00016438,2]
[396575045,1765056641354,-500.8231087,0.00016438,2]
[396575046,1765056641366,-500.0,0.00016438,2]
[396575047,1765056641377,-500.0,0.00016438,2]
[396575048,1765056641388,-1000.0,0.00016438,2]
[396575049,1765056641400,-500.0,0.00016438,2]
[396575050,1765056641411,-500.0,0.00016438,2]
[396575051,1765056641423,-500.0,0.00016438,2]
[396575052,1765056641434,-500.0,0.00016438,2]
[396575053,1765056641445,-500.0,0.00016438,2]
[396575054,1765056641457,-503.91104938,0.00016438,2]
[396575055,1765056641468,-500.0,0.00016438,2]
[396575056,1765056641479,-2241.51,0.00016438,2]
[396575057,1765056641490,-561.72,0.00016438,2]
[396575058,1765056641501,-500.0,0.00016438,2]
[396575059,1765056641512,-500.0,0.00016438,2]
[396575060,1765056641525,-500.0,0.00016438,2]
[396575061,1765056641536,-500.0,0.00016438,2]
[396575062,1765056641548,-500.0,0.00016438,2]
[396575063,1765056641560,-631.56349314,0.00016438,2]
[396575064,1765056641571,-500.0,0.00016438,2]
[396575065,1765056641581,-500.0,0.00016438,2]
[396575066,1765056641592,-781.04,0.00016438,2]
[396575067,1765056641603,-500.0,0.00016438,2]
[396575068,1765056641614,-500.0,0.00016438,2]
[396575069,1765056641625,-500.0,0.00016438,2]
[396575070,1765056641636,-500.0,0.00016438,2]
[396575071,1765056641647,-500.0,0.00016438,2]
[396575072,1765056641658,-503.62195892,0.00016438,2]
[396575073,1765056641669,-500.0,0.00016438,2]
[396575074,1765056641680,-501.30040746,0.00016438,2]
[396575075,1765056641691,-500.0,0.00016438,2]
[396575076,1765056641702,-505.22422973,0.00016438,2]
[396575077,1765056641713,-500.0,0.00016438,2]
[396575078,1765056641723,-500.0,0.00016438,2]
[396575079,1765056641734,-500.0,0.00016438,2]
[396575080,1765056641749,-500.0,0.00016438,2]
[396575081,1765056641759,-500.0,0.00016438,2]
[396575082,1765056641770,-533.28,0.00016438,2]
[396575083,1765056641781,-500.0,0.00016438,2]
[396575084,1765056641791,-500.0,0.00016438,2]
[396575085,1765056641802,-500.0,0.00016438,2]
[396575086,1765056641813,-502.19494612,0.00016438,2]
[396575087,1765056641825,-500.0,0.00016438,2]
[396575088,1765056641836,-500.0,0.00016438,2]
[396575089,1765056641846,-500.0,0.00016438,2]
[396575090,1765056641857,-500.0,0.00016438,2]
[396575091,1765056641868,-500.0,0.00016438,2]
[396575092,1765056641878,-500.0,0.00016438,2]
[396575093,1765056641889,-500.0,0.00016438,2]
[396575094,1765056641899,-523.1,0.00016438,2]
[396575095,1765056641910,-503.12592944,0.00016438,2]
[396575096,1765056641920,-500.0,0.00016438,2]
[396575097,1765056641931,-500.0,0.00016438,2]
[396575098,1765056641941,-500.0,0.00016438,2]
[396575099,1765056641952,-500.0,0.00016438,2]
[396575100,1765056641963,-500.0,0.00016438,2]
[396575101,1765056641974,-500.0,0.00016438,2]
[396575102,1765056641984,-502.62767731,0.00016438,2]
[396575103,1765056641995,-500.0,0.00016438,2]
[396575104,1765056642006,-500.0,0.00016438,2]
[396575105,1765056642016,-500.0,0.00016438,2]
[396575106,1765056642027,-500.0,0.00016438,2]
[396575107,1765056642037,-405.01574415,0.00016438,2]
[396575108,1765056642048,-690.44,0.00016438,2]
[396575109,1765056642059,-500.0,0.00016438,2]
[396575110,1765056642069,-500.0,0.00016438,2]
[396575111,1765056642080,-500.0,0.00016438,2]
[396575112,1765056642091,-500.0,0.00016438,2]
[396575113,1765056642101,-500.0,0.00016438,2]
[396575114,1765056642112,-500.0,0.00016438,2]
[396575115,1765056642122,-500.0,0.00016438,2]
[396575116,1765056642133,-500.0,0.00016438,2]
[396575117,1765056642144,-500.0,0.00016438,2]
[396575118,1765056642155,-497.46858562,0.00016438,2]
[396575119,1765056642166,-500.0,0.00016438,2]
[396575120,1765056642176,-500.0,0.00016438,2]
[396575121,1765056642187,-502.822061,0.00016438,2]
[396575122,1765056642198,-500.0,0.00016438,2]
[396575123,1765056642209,-500.0,0.00016438,2]
[396575124,1765056642220,-500.0,0.00016438,2]
[396575125,1765056642231,-154.39431703,0.00016438,2]
[396575126,1765056642242,-503.688638,0.00016438,2]
[396575127,1765056642253,-500.0,0.00016438,2]
[396575128,1765056642264,-500.0,0.00016438,2]
[396575129,1765056642275,-500.0,0.00016438,2]
[396575130,1765056642286,-500.0,0.00016438,2]
[396575131,1765056642296,-500.0,0.00016438,2]
[396575132,1765056642307,-500.0,0.00016438,2]
[396575133,1765056642318,-500.0,0.00016438,2]
[396575134,1765056642328,-500.0,0.00016438,2]
[396575135,1765056642339,-505.07,0.00016438,2]
[396575136,1765056642351,-500.0,0.00016438,2]
[396575137,1765056642362,-2544.1,0.00016438,2]
[396575138,1765056642373,-500.0,0.00016438,2]
[396575139,1765056642384,-1528.8,0.00016438,2]
[396575140,1765056642394,-2393.27,0.00016438,2]
[396575141,1765056642407,-500.0,0.00016438,2]
[396575142,1765056642417,-510.76697966,0.00016438,2]
[396575143,1765056642428,-500.3265343,0.00016438,2]
[396575144,1765056642439,-500.0,0.00016438,2]
[396575145,1765056642451,-503.1183541,0.00016438,2]
[396575146,1765056642462,-500.0,0.00016438,2]
[396575147,1765056642473,-500.0,0.00016438,2]
[396575148,1765056642484,-500.0,0.00016438,2]
[396575149,1765056642495,-746.27,0.00016438,2]
[396575150,1765056642507,-2519.39,0.00016438,2]
[396575151,1765056642518,-500.0,0.00016438,2]
[396575152,1765056642529,-500.0,0.00016438,2]
[396575153,1765056642540,-501.68165406,0.00016438,2]
[396575154,1765056642551,-500.0,0.00016438,2]
[396575155,1765056642562,-500.0,0.00016438,2]
[396575156,1765056642573,-500.0,0.00016438,2]
[396575157,1765056642584,-573.36,0.00016438,2]
[396575158,1765056642595,-500.0,0.00016438,2]
[396575159,1765056642607,-500.0,0.00016438,2]
[396575160,1765056642617,-650.3,0.00016438,2]
[396575161,1765056642628,-500.0,0.00016438,2]
[396575162,1765056642638,-500.0,0.00016438,2]
[396575163,1765056642649,-500.0,0.00016438,2]
[396575164,1765056642660,-502.4043925,0.00016438,2]
[396575165,1765056642671,-500.0,0.00016438,2]
[396575166,1765056642681,-739.28,0.00016438,2]
[396575168,1765056642692,-500.0,0.00016438,2]
[396575170,1765056642703,-500.0,0.00016438,2]
[396575172,1765056642714,-500.0,0.00016438,2]
[396575173,1765056642725,-453.3,0.00016438,2]
[396575174,1765056642736,-500.0,0.00016438,2]
[396575175,1765056642749,-500.0,0.00016438,2]
[396575176,1765056642760,-500.0,0.00016438,2]
[396575177,1765056642771,-500.0,0.00016438,2]
[396575178,1765056642783,-500.0,0.00016438,2]
[396575179,1765056642794,-503.43284398,0.00016438,2]
[396575180,1765056642805,-500.0,0.00016438,2]
[396575181,1765056642816,-500.0,0.00016438,2]
[396575182,1765056642828,-500.0,0.00016438,2]
[396575183,1765056642839,-500.0,0.00016438,2]
[396575184,1765056642851,-500.0,0.00016438,2]
[396575185,1765056642862,-2535.16,0.00016438,2]
[396575186,1765056642872,-501.73752653,0.00016438,2]
[396575187,1765056642884,-500.0,0.00016438,2]
[396575193,1765056643381,-712.56,0.00016438,2]
[396575194,1765056643410,-500.0,0.00016438,2]
[396575195,1765056643432,-500.0,0.00016438,2]
[396575196,1765056643442,-151.0,0.00016438,2]
[396575197,1765056643451,-2299.67,0.00016438,2]
[396575198,1765056643461,-500.0,0.00016438,2]
[396575199,1765056643471,-500.0,0.00016438,2]
[396575200,1765056643480,-500.0,0.00016438,2]
[396575201,1765056643491,-500.0,0.00016438,2]
[396575202,1765056643500,-500.0,0.00016438,2]
[396575203,1765056643510,-502.23095657,0.00016438,2]
[396575204,1765056643519,-500.0,0.00016438,2]
[396575205,1765056643530,-501.51407906,0.00016438,2]
[396575206,1765056643539,-500.0,0.00016438,2]
[396575207,1765056643549,-500.0,0.00016438,2]
[396575208,1765056643559,-500.0,0.00016438,2]
[396575209,1765056643568,-572.92061823,0.00016438,2]
[396575210,1765056643578,-500.46109539,0.00016438,2]
[396575211,1765056643587,-500.0,0.00016438,2]
[396575212,1765056643596,-501.24416574,0.00016438,2]
[396575213,1765056643606,-502.03089373,0.00016438,2]
[396575214,1765056643615,-500.0,0.00016438,2]
[396575215,1765056643625,-151.0,0.00016438,2]
[396575216,1765056643635,-500.0,0.00016438,2]
[396575217,1765056643644,-500.0,0.00016438,2]
[396575218,1765056643653,-500.0,0.00016438,2]
[396575219,1765056643663,-500.0,0.00016438,2]
[396575220,1765056643672,-500.0,0.00016438,2]
[396575221,1765056643681,-500.0,0.00016438,2]
[396575222,1765056643690,-500.0,0.00016438,2]
[396575223,1765056643699,-500.0,0.00016438,2]
[396575224,1765056643707,-574.93,0.00016438,2]
[396575225,1765056643716,-500.0,0.00016438,2]
[396575226,1765056643725,-500.0,0.00016438,2]
[396575227,1765056643735,-500.0,0.00016438,2]
[396575228,1765056643746,-501.42219347,0.00016438,2]
[396575229,1765056643756,-500.0,0.00016438,2]
[396575230,1765056643765,-1048.73,0.00016438,2]
[396575231,1765056643774,-534.27720199,0.00016438,2]
[396575232,1765056643783,-500.0,0.00016438,2]
[396575233,1765056643793,-502.1415924,0.00016438,2]
[396575234,1765056643802,-500.0,0.00016438,2]
[396575235,1765056643811,-502.55622645,0.00016438,2]
[396575236,1765056643820,-500.0,0.00016438,2]
[396575237,1765056643832,-500.0,0.00016438,2]
[396575238,1765056643841,-504.3241041,0.00016438,2]
[396575239,1765056643850,-500.0,0.00016438,2]
[396575240,1765056643859,-500.0,0.00016438,2]
[396575241,1765056643868,-500.0,0.00016438,2]
[396575242,1765056643877,-500.0,0.00016438,2]
[396575243,1765056643886,-502.32933542,0.00016438,2]
[396575244,1765056643895,-500.0,0.00016438,2]
[396575245,1765056643904,-1979.48,0.00016438,2]
[396575246,1765056643913,-500.0,0.00016438,2]
[396575247,1765056643922,-579.24,0.00016438,2]
[396575248,1765056643931,-500.0,0.00016438,2]
[396575249,1765056643940,-500.0,0.00016438,2]
[396575250,1765056643949,-208.91205399,0.00016438,2]
[396575251,1765056643959,-500.0,0.00016438,2]
[396575252,1765056643967,-500.0,0.00016438,2]
[396575253,1765056643976,-606.84,0.00016438,2]
[396575254,1765056643986,-500.0,0.00016438,2]
[396575255,1765056643995,-500.0,0.00016438,2]
[396575256,1765056644004,-504.20965737,0.00016438,2]
[396575257,1765056644013,-500.0,0.00016438,2]
[396575258,1765056644022,-500.0,0.00016438,2]
[396575259,1765056644031,-536.63128475,0.00016438,2]
[396575260,1765056644041,-500.0,0.00016438,2]
[396575261,1765056644050,-500.0,0.00016438,2]
[396575262,1765056644059,-500.0,0.00016438,2]
[396575263,1765056644068,-500.0,0.00016438,2]
[396575264,1765056644076,-500.0,0.00016438,2]
[396575265,1765056644085,-2283.13,0.00016438,2]
[396575266,1765056644095,-615.95,0.00016438,2]
[396575267,1765056644104,-500.0,0.00016438,2]
[396575268,1765056644114,-500.0,0.00016438,2]
[396575269,1765056644123,-2081.29,0.00016438,2]
[396575270,1765056644132,-501.39823329,0.00016438,2]
[396575271,1765056644141,-612.61,0.00016438,2]
[396575272,1765056644150,-500.0,0.00016438,2]
[396575273,1765056644159,-503.26039617,0.00016438,2]
[396575274,1765056644168,-2223.21,0.00016438,2]
[396575275,1765056644178,-500.0,0.00016438,2]
[396575276,1765056644187,-151.0,0.00016438,2]
[396575277,1765056644196,-500.0,0.00016438,2]
[396575278,1765056644205,-500.0,0.00016438,2]
[396575279,1765056644214,-500.0,0.00016438,2]
[396575280,1765056644223,-151.0,0.00016438,2]
[396575281,1765056644232,-502.29128121,0.00016438,2]
[396575282,1765056644242,-500.0,0.00016438,2]
[396575283,1765056644251,-505.01111889,0.00016438,2]
[396575284,1765056644260,-500.0,0.00016438,2]
[396575285,1765056644269,-506.93067767,0.00016438,2]
[396575286,1765056644279,-151.0,0.00016438,2]
[396575287,1765056644288,-964.81,0.00016438,2]
[396575288,1765056644297,-151.0,0.00016438,2]
[396575289,1765056644307,-500.0,0.00016438,2]
[396575290,1765056644316,-153.797533,0.00016438,2]
[396575291,1765056644326,-151.0,0.00016438,2]
[396575292,1765056644335,-500.0,0.00016438,2]
[396575293,1765056644344,-534.11658321,0.00016438,2]
[396575294,1765056644354,-500.0,0.00016438,2]
[396575295,1765056644363,-500.0,0.00016438,2]
[396575296,1765056644372,-500.0,0.00016438,2]
[396575297,1765056644382,-500.0,0.00016438,2]
[396575298,1765056644391,-500.0,0.00016438,2]
[396575299,1765056644400,-1991.09,0.00016438,2]
[396575300,1765056644409,-2445.03,0.00016438,2]
[396575301,1765056644419,-500.0,0.00016438,2]
[396575302,1765056644428,-151.0,0.00016438,2]
[396575303,1765056644437,-500.0,0.00016438,2]
[396575304,1765056644447,-151.0,0.00016438,2]
[396575305,1765056644456,-151.0,0.00016438,2]
[396575306,1765056644465,-151.0,0.00016438,2]
[396575307,1765056644474,-500.0,0.00016438,2]
[396575308,1765056644483,-500.0,0.00016438,2]